Cogmind - Beta 17 @@@ ROGUE MODE // 2026.07.17 @ 11:00:00 // AFD2020/Player2 Player: Unwalkable Access Result: Self-destructed Performance ------------- Evolutions (9) 4500 Regions Visited (27) 5400 Robots Destroyed (284) 1420 Value Destroyed (17041) 17041 Prototype IDs (37) 740 Alien Tech Used (3) 600 Bonus (31652) 31652 TOTAL SCORE: 61353 Bonus ------- Triggered High Security 1000 High Alert Combat Kills 7903 Follower Combat Kills 7202 Network Hubs Disabled 400 Met Zhirov 300 Met Warlord at Base 500 MAIN.C Attacked Warlord 500 Met R17 at Cetus 500 Used Core Reset Matrix 3000 Met R17 at Research 2000 Met Warlord at Research 2000 Scanned by Researcher 500 Destroyed Superfortress 15000 Friendly Fire -9153 Cogmind --------- Core Integrity 180/1600 Matter 208/300 Energy 80/100 System Corruption 0% Temperature Cool (18) Movement Treading (320) Ox2 Location -1/Access Parts ------- > --- POWER (1) -------- (None) > --- PROPULSION (4) --- Medium Treads Centrium Wheel High-density Centrium Wheel > --- UTILITY (10) ----- Advanced Heat Sink Advanced Heat Sink Advanced Heat Sink High-capacity Storage Unit Experimental Targeting Computer Advanced Target Analyzer Experimental Core Analyzer Experimental Core Analyzer Experimental Armor Integrity Analyzer > --- WEAPON (10) ------ Heavy Laser Heavy Laser Phase Gun Phase Gun > --- INVENTORY (20) --- Advanced Heat Sink YI-UF0's Bottomless Matter Pit (1220) Advanced Drone Bay (2/2) Transdimensional Reconstructor Vortex Driver (29) Peak State ------------ > --- POWER ------------ Improved Quantum Reactor > --- PROPULSION ------- Centrium Wheel High-density Centrium Wheel High-density Centrium Wheel High-density Centrium Wheel > --- UTILITY ---------- Experimental Coolant Injector High-capacity Storage Unit Experimental Targeting Computer Advanced Target Analyzer Advanced Target Analyzer Experimental Core Analyzer Experimental Core Analyzer Experimental Armor Integrity Analyzer Matter Filter Improved Weapon Cycler > --- WEAPON ----------- Heavy Laser Railgun Helical Railgun Helical Railgun Helical Railgun Helical Railgun Helical Railgun Helical Railgun Vortex Catalyst Activator > --- INVENTORY -------- Improved Fusion Compressor YI-UF0's Bottomless Matter Pit Advanced Drone Bay Transdimensional Reconstructor Core Reset Matrix Vortex Driver Vortex Catalyst Activator [Rating: 205] Favorites ----------- Power Quantum Reactor Engine Backup Power I Power Core Light Nuclear Core Reactor Quantum Reactor Propulsion High-density Centrium Wheel Treads Centrium Heavy Treads Leg Carbon-fiber Leg Wheel High-density Centrium Wheel Hover Unit Cooled Gravmag System Flight Unit VTOL Module Utility Experimental Targeting Computer Device Improved Weapon Cycler Storage High-capacity Storage Unit Processor Experimental Targeting Computer Hackware Improved Hacking Suite Protection Experimental Propulsion Shielding Weapon Autogun Energy Gun Heavy Laser Energy Cannon Vortex Driver Ballistic Gun Autogun Ballistic Cannon Hypervelocity Mass Driver Launcher Vortex Catalyst Activator Impact Weapon Makeshift Hammer Build | -11 -10 -10 -9 -9 -7 -6 -6 -6 -6 -6 -6 -5 -5 -5 -5 -4 -4 -4 -4 -4 -3 -3 -3 -2 -2 -2 -1 ------- Run | Yrd Mat Min Mat Min Zio Pro Fac Ext Cet Arc Hub Fac Upp Upp Zhi Pro Fac Upp Upp War Pro Res Qua Res Tes Frg Acc Slots Evolved 18 | . . . 2 . . . 6 . . . . 2 . . . . 2 . . . . 2 . 2 . . 2 Power . | . . . . . . . . . . . . . . . . . . . . . . . . . . . . Propulsion 2 | . . . . . . . . . . . . . . . . . 1 . . . . . . . . . 1 Utility 8 | . . . . . . . 2 . . . . . . . . . 1 . . . . 2 . 2 . . 1 Weapon 8 | . . . 2 . . . 4 . . . . 2 . . . . . . . . . . . . . . . Parts Attached 212 | . 7 1 12 2 1 10 10 25 5 6 . 5 1 1 3 2 24 2 2 6 1 28 3 21 3 9 22 Power 15 | . 1 . 1 1 . . 1 2 1 . . . . . . . 2 . . . . 2 1 1 . 1 1 Engine 6 | . 1 . 1 1 . . 1 1 . . . . . . . . . . . . . 1 . . . . . Core 3 | . . . . . . . . 1 . . . . . . . . 1 . . . . . . . . . 1 Reactor 6 | . . . . . . . . . 1 . . . . . . . 1 . . . . 1 1 1 . 1 . Propulsion 29 | . 4 . 2 . . 4 2 5 1 . . . . . . 2 1 . . 2 . 3 . 1 . . 2 Treads 6 | . . . 2 . . 2 . . 1 . . . . . . . . . . . . . . . . . 1 Leg 4 | . . . . . . . . 4 . . . . . . . . . . . . . . . . . . . Wheel 6 | . . . . . . 1 . . . . . . . . . . . . . . . 3 . 1 . . 1 Hover 6 | . . . . . . . . 1 . . . . . . . 2 1 . . 2 . . . . . . . Flight 7 | . 4 . . . . 1 2 . . . . . . . . . . . . . . . . . . . . Utility 80 | . . 1 2 1 1 3 3 6 1 5 . 2 . 1 3 . 13 1 . 1 1 11 2 11 2 2 7 Device 28 | . . 1 1 . . . 2 1 . 1 . 1 . . 1 . 3 1 . . 1 2 1 5 . 1 6 Storage 4 | . . . . 1 . . . . . . . . . 1 1 . . . . . . 1 . . . . . Processor 29 | . . . 1 . 1 1 . 3 . . . . . . . . 7 . . 1 . 6 1 4 2 1 1 Hackware 12 | . . . . . . . 1 . . 4 . . . . . . 3 . . . . 2 . 2 . . . Protection 7 | . . . . . . 2 . 2 1 . . 1 . . 1 . . . . . . . . . . . . Artifact . | . . . . . . . . . . . . . . . . . . . . . . . . . . . . Weapon 88 | . 2 . 7 . . 3 4 12 2 1 . 3 1 . . . 8 1 2 3 . 12 . 8 1 6 12 Energy Gun 11 | . . . . . . . . . . . . . . . . . . . . . . . . . . . 11 Energy Cannon 3 | . . . . . . . . . . . . . . . . . . . . 3 . . . . . . . Ballistic Gun 68 | . 2 . 7 . . 3 4 12 2 1 . 3 . . . . 7 1 2 . . 11 . 7 1 5 . Ballistic Cannon 1 | . . . . . . . . . . . . . . . . . . . . . . . . 1 . . . Launcher 3 | . . . . . . . . . . . . . . . . . . . . . . 1 . . . 1 1 Special Weapon . | . . . . . . . . . . . . . . . . . . . . . . . . . . . . Impact Weapon 2 | . . . . . . . . . . . . . 1 . . . 1 . . . . . . . . . . Slashing Weapon . | . . . . . . . . . . . . . . . . . . . . . . . . . . . . Piercing Weapon . | . . . . . . . . . . . . . . . . . . . . . . . . . . . . Special Melee Weapon . | . . . . . . . . . . . . . . . . . . . . . . . . . . . . Unidentified Prototypes 25 | . . . . 1 . . 1 . 3 . . . . . 4 1 2 . . 4 . 4 1 1 1 1 1 Parts Lost 51 | . . 3 . 1 . 1 8 4 . 1 . . 1 1 . . 3 1 . . . . . . . 7 20 Power 5 | . . . . 1 . . . 1 . . . . . . . . . . . . . . . . . 1 2 Propulsion 6 | . . 2 . . . . 1 . . . . . . . . . . . . . . . . . . . 3 Utility 5 | . . 1 . . . . . 1 . . . . . . . . . 1 . . . . . . . 1 1 Weapon 35 | . . . . . . 1 7 2 . 1 . . 1 1 . . 3 . . . . . . . . 5 14 Highest Loss Streak 6 | . . 3 . 1 . 1 6 1 . 1 . . 1 1 . . 1 1 . . . . . . . 4 5 To Critical Strikes 2 | . . . . . . . . 1 . . . . . . . . . . . . . . . . . . 1 Average Backups 7 | 6 4 5 3 5 5 4 4 3 3 4 3 3 3 5 13 14 5 5 4 4 3 4 13 16 17 13 7 Power . | 1 1 1 1 . . . . . . . . . . . . . . . . . . . . . . . . Propulsion . | 4 1 . . . . . . . . . . . . . 1 3 . . . . . . . . 1 1 . Utility 3 | . . 1 1 1 2 2 2 1 2 3 3 3 3 4 10 10 3 2 2 1 . 1 6 7 5 3 2 Weapon 2 | 1 . 3 1 3 3 2 1 2 1 . . . . 1 . . . 1 1 1 2 2 5 5 7 7 2 Tool/Special . | . . . . . . . . . . . . . . . . . . . . . . . . . . . . Unused Backups 30 | . 9 . . . . 1 . 2 . . . 3 . . 1 2 2 1 . 1 . . . 3 3 1 1 Power 1 | . 1 . . . . . . . . . . . . . . . . . . . . . . . . . . Propulsion 6 | . 6 . . . . . . . . . . . . . . . . . . . . . . . . . . Utility 11 | . . . . . . 1 . . . . . 3 . . . 2 2 1 . 1 . . . . 1 . . Weapon 11 | . 2 . . . . . . 2 . . . . . . 1 . . . . . . . . 3 2 1 . Tool/Special 1 | . . . . . . . . . . . . . . . . . . . . . . . . . . . 1 Average Slot Usage (%) 90 | . 60 45 77 99 100 85 74 64 95 91 93 90 82 85 82 88 86 99 100 100 100 99 99 97 97 98 86 Engine 2 | . 12 8 8 10 11 5 1 1 . . . . . . . . 1 5 5 5 5 . . . . . . Reactor 2 | . . . . . . . . . 4 6 6 5 5 5 5 5 1 . . . . 3 4 4 4 3 3 Treads 3 | . . . 20 22 22 12 . . 4 6 6 5 5 5 5 5 . . . . . . . . . . . Wheel 5 | . . . . . . 2 4 . . . . . . . . . . . . . . 11 14 13 13 13 15 Hover 2 | . . . . . . . . 3 . . . . . . . . 15 15 15 15 15 2 . . . . . Device 7 | . . 2 8 11 11 10 9 4 6 2 . . 5 3 2 5 3 4 5 5 7 10 3 8 6 10 12 Storage 1 | . . . . . . . . . . . . . . 1 5 5 . . . . . . 4 4 4 4 4 Processor 13 | . . . 1 11 11 7 6 13 15 6 . . . . . . 7 21 21 21 18 14 23 21 25 23 20 Hackware 3 | . . . . . . . 5 . . 13 26 22 5 5 5 5 9 . . . . 6 . . . . . Protection 1 | . . . . . . . . 3 4 2 . . 5 4 3 5 4 . . . . . . . . . . Ballistic Gun 42 | . 18 22 39 44 44 43 42 25 53 52 53 54 52 50 47 47 37 52 52 51 52 47 46 42 42 41 20 Peak Build Rating 205 | 6 6 6 13 20 16 25 38 50 75 83 80 84 86 86 89 89 95 82 81 91 92 138 150 200 200 199 205 Average Rating 95 | 6 4 3 10 13 15 18 29 29 68 77 80 82 81 84 82 88 86 80 80 84 91 114 141 182 196 194 167 On Entrance 74 | 6 6 5 1 13 14 16 22 15 50 75 80 80 83 86 75 89 84 82 81 79 91 92 138 149 196 196 188 Avg Prop Armor Cover (%) 15 | . 29 . 19 20 20 17 9 5 . . . . . . . . . . . . . . . . . . . Naked Turns . | . . . . . . . . . . . . . . . . . . . . . . . . . . . . Heaviest Build 153 | 13 13 8 9 9 9 11 20 35 57 59 51 93 93 109 76 76 76 33 33 32 33 116 116 153 151 136 116 Greatest Support 80 | 20 20 8 9 9 9 10 28 35 80 80 80 80 80 80 80 80 33 33 33 37 37 60 60 60 60 60 76 Greatest Overweight (x) 5 | . . . . . . 1 2 2 . . . 1 1 1 . 3 2 . . . . 1 5 2 2 3 1 Average Overweight (x) . | . . . . . . . . . . . . . 1 . . . . . . . . . 1 1 2 1 . Largest Inventory Capacity 20 | 8 8 5 5 5 5 5 5 5 5 5 5 5 5 15 15 15 15 5 5 5 5 20 20 20 20 20 20 Average Capacity 9 | 8 5 5 5 5 5 5 5 5 5 5 5 5 5 7 15 15 5 5 5 5 5 6 20 20 20 20 20 Most Carried 20 | 6 6 5 5 5 5 5 5 5 4 5 3 5 4 12 15 15 12 5 5 5 5 10 20 20 20 18 12 Average Carried 8 | 6 4 5 3 4 5 4 4 3 3 4 3 4 3 5 13 13 5 4 4 4 4 5 14 19 19 16 9 Final Capacity 20 | 8 5 5 5 5 5 5 5 5 5 5 5 5 5 15 15 15 5 5 5 5 5 20 20 20 20 20 20 Final Carried 20 | 6 5 5 5 5 5 5 4 4 4 3 3 3 4 12 14 13 5 5 5 5 5 10 20 19 18 11 6 Class Distribution -------------------- 72% | Scavenger-Executioner 6% | Gunner 4% | Scavenger-Skirmisher 4% | Executioner Dominant Class ---------------- Mutant | -10/Materials Mutant | -10/Mines Gunner | -9/Materials Scavenger-Skirmisher | -9/Mines Gunner | -7/Zion Gunner | -6/Proximity Caves Executioner | -6/Factory Commander-Gunner | -6/Extension Scavenger-Executioner | -6/Cetus Scavenger-Executioner | -6/Archives Scavenger-Executioner | -6/Hub_04(d) Scavenger-Executioner | -5/Factory Scavenger-Executioner | -5/Upper Caves Scavenger-Executioner | -5/Upper Caves Scavenger-Executioner | -5/Zhirov Scavenger-Executioner | -4/Proximity Caves Scavenger-Executioner | -4/Factory Scavenger-Executioner | -4/Upper Caves Scavenger-Executioner | -4/Upper Caves Scavenger-Executioner | -4/Warlord Scavenger-Executioner | -3/Proximity Caves Scavenger-Executioner | -3/Research Scavenger-Executioner | -3/Quarantine Scavenger-Executioner | -2/Research Scavenger-Executioner | -2/Testing Scavenger-Executioner | -2/Protoforge Scavenger-Executioner | -1/Access Resources | -11 -10 -10 -9 -9 -7 -6 -6 -6 -6 -6 -6 -5 -5 -5 -5 -4 -4 -4 -4 -4 -3 -3 -3 -2 -2 -2 -1 ----------- Run | Yrd Mat Min Mat Min Zio Pro Fac Ext Cet Arc Hub Fac Upp Upp Zhi Pro Fac Upp Upp War Pro Res Qua Res Tes Frg Acc Matter Collected 17836 | 200 110 52 226 303 130 825 802 1163 282 523 16 145 162 191 . 263 834 215 96 . 448 1325 752 1291 1650 3380 2452 Remotely 16 | . . 16 . . . . . . . . . . . . . . . . . . . . . . . . . Salvage Created 16486 | . 122 . 363 251 . 493 541 601 333 412 . 156 187 225 . 323 699 131 96 . 191 989 1262 740 957 2718 4696 Parts 705 | . 11 . 29 9 . 36 31 23 10 17 . 10 10 10 . 6 35 4 8 . 10 35 70 37 42 122 140 Haulers Intercepted 9 | . . . 2 . . . . . . . . . . 1 . . 1 . . . . 5 . . . . . Recyclers Shooed 6 | . . . . 2 . . . 1 . . . . . . . . . . . . . . 1 . 2 . . Parts Field Recycled . | . . . . . . . . . . . . . . . . . . . . . . . . . . . . Retrieved Matter . | . . . . . . . . . . . . . . . . . . . . . . . . . . . . Parts Self-Destructed 98 | . . . . . . 32 . . . . . . 14 15 . 8 . 3 6 . 20 . . . . . . Prevented 6 | . . . . . . 1 . . . . . . . . . . . 5 . . . . . . . . . Parts Restored . | . . . . . . . . . . . . . . . . . . . . . . . . . . . . Kills | -11 -10 -10 -9 -9 -7 -6 -6 -6 -6 -6 -6 -5 -5 -5 -5 -4 -4 -4 -4 -4 -3 -3 -3 -2 -2 -2 -1 ------- Run | Yrd Mat Min Mat Min Zio Pro Fac Ext Cet Arc Hub Fac Upp Upp Zhi Pro Fac Upp Upp War Pro Res Qua Res Tes Frg Acc Combat Hostiles Destroyed 234 | . 4 1 9 1 . 9 8 11 5 3 . 2 4 2 . 4 10 2 4 . 3 8 16 10 12 40 66 Guns 212 | . 4 1 9 1 . 9 8 11 5 3 . 2 4 2 . 4 10 2 4 . 3 8 16 9 12 33 52 Cannons 1 | . . . . . . . . . . . . . . . . . . . . . . . . 1 . . . AOE 19 | . . . . . . . . . . . . . . . . . . . . . . . . . . 7 12 Classes Destroyed 26 | . 2 1 3 1 . 4 3 . . 1 . . . . . . . . . . . 3 2 . 1 4 1 Worker 7 | . . . . . . . 2 . . . . . . . . . 1 . . . . 1 . . . 2 1 Builder 5 | . . . 1 . . . 1 . . . . . . . . . . . . . . . . 1 2 . . Hauler 9 | . . . 2 . . . . . . . . . . 1 . . 1 . . . . 5 . . . . . Recycler 5 | . . . . 2 . . . . . . . 1 . . . . . . . . . . . . 1 . 1 Minesweeper 1 | . . . . . . 1 . . . . . . . . . . . . . . . . . . . . . Mechanic 7 | . . . . . . . . . . . . . . . . . . . . . . 1 . . . . 6 Operator 5 | . . . . . . . . . . 4 . . . . . . . . . . . . . . 1 . . Drone 1 | . . . . . . . . . . . . . . . . . . . . . . . . . . 1 . Watcher 7 | . . . . . . . 1 1 . . . . . . . . 1 . . . . . 1 1 . 1 1 Swarmer 37 | . 2 . 6 . . 4 1 2 . . . 2 2 . . . 2 . 4 . . 2 3 3 . 2 2 Saboteur 3 | . . . . . . . . . . . . . . . . . . . . . . . . . . 3 . Grunt 91 | . 2 . 1 . . 2 2 5 . . . . 2 2 . 4 4 . . . 3 3 9 1 6 7 38 Brawler 7 | . . . . . . . . . . . . . . . . . . . . . . . 1 . . 1 5 Duelist 13 | . . . . . . 1 . . . . . . . . . . . . . . . . . 1 1 1 9 Protector 3 | . . . . . . . . . . . . . . . . . . . . . . . . . . . 3 Researcher 3 | . . . . . . . . . . . . . . . . . . . . . . . 1 . . 2 . Sentry 18 | . . . 2 . . . 1 4 . 3 . . . . . . 1 . . . . . . . . 3 4 Demolisher 2 | . . 1 . . . . . . . . . . . . . . . . . . . 1 . . . . . Specialist 7 | . . . . . . . . . . . . . . . . . . . . . . . . . 2 5 . Hunter 11 | . . . . . . 1 2 . . . . . . . . . . 2 . . . . . 1 . 4 1 Programmer 19 | . . . . . . . 2 . . . . . . . . . 3 . . . . . 3 1 3 3 4 Behemoth 2 | . . . . . . 1 . . . . . . . . . . . . . . . . . 1 . . . Cetus Guard 5 | . . . . . . . . . 5 . . . . . . . . . . . . . . . . . . Hotshot 4 | . . . . . . . . . . . . . . . . . . . . . . . . . . 4 . Decapitator 1 | . . . . . . . . . . . . . . . . . . . . . . . . . . 1 . Investigator 1 | . . . . . . . . . . . . . . . . . . . . . . . . . . . 1 Striker 4 | . . . . . . . . . . . . . . . . . . . . . . 1 . . . 3 . Executioner 4 | . . . . . . . . . . . . . . . . . . . . . . 1 . 2 . 1 . Decomposer 1 | . . . . . . . . . . . . . . . . 1 . . . . . . . . . . . Tinkerer 1 | . . . . . . . . . . . . . . . . . . . . . . . . . . 1 . Best Kill Streak 33 | . 2 1 6 3 . 4 2 3 3 3 . 2 2 2 . 3 3 2 4 . 3 3 5 3 5 14 33 Combat Bots Only 27 | . 2 1 6 1 . 4 1 3 3 1 . 2 2 2 . 3 3 2 4 . 3 2 5 3 4 14 27 Max Kills in Single Turn 6 | . 1 1 3 1 . 2 2 1 1 1 . 2 2 1 . 1 2 1 2 . 2 2 3 2 3 6 4 Gunslinging 2 | . . . 2 . . 1 . . . . . 1 . . . . 1 . . . 1 . 1 1 1 1 1 Exploded 6 | . . . . . . . . . . . . . . . . . . . . . . . . . . 6 4 Melee . | . . . . . . . . . . . . . . . . . . . . . . . . . . . . Uniques/NPCs Destroyed 2 | . . . . 1 . . . . . . . . . . . . . . . . . . . . . 1 . YI-UF0 (-9/Mines) Superfortress (-2/Protoforge) Combat | -11 -10 -10 -9 -9 -7 -6 -6 -6 -6 -6 -6 -5 -5 -5 -5 -4 -4 -4 -4 -4 -3 -3 -3 -2 -2 -2 -1 -------- Run | Yrd Mat Min Mat Min Zio Pro Fac Ext Cet Arc Hub Fac Upp Upp Zhi Pro Fac Upp Upp War Pro Res Qua Res Tes Frg Acc Hostile Shots Fired 879 | . 22 8 22 12 . 40 115 105 19 4 10 13 16 4 . 14 40 12 3 . 2 58 38 9 29 94 190 Missed 301 | . 13 . 4 7 . 15 71 52 1 2 4 5 2 1 . 4 14 4 1 . 2 16 13 2 8 23 37 Hits 578 | . 9 8 18 5 . 25 44 53 18 2 6 8 14 3 . 10 26 8 2 . . 42 25 7 21 71 153 Melee 9 | . . . . . . . . . . . . . . . . . . . . . . . 1 2 1 2 3 Projectile 569 | . 9 8 18 5 . 25 44 53 18 2 6 8 14 3 . 10 26 8 2 . . 42 24 5 20 69 150 AOE 28 | . . 8 . 10 . . . . . . . . . . . . 2 . . . . . . . . 2 6 Critical Strikes 35 | . . . . . . 1 1 1 4 1 . 1 . . . . 2 . . . . 1 4 . 3 8 8 Part Disruptions 1 | . . . . . . . . . . . . . . . . . . . . . . . . . . 1 . Damage Taken 11341 | . 89 307 169 308 . 456 713 596 468 150 43 126 267 57 . 211 730 144 31 . 63 658 293 114 359 1872 3117 Core 1494 | . 31 105 60 77 . 84 176 82 . 22 6 12 . . . 23 113 . . . . 98 10 12 26 199 358 Absorbed by Shields 1972 | . . . . . . . . . . . . . . . . . . . . . 60 330 234 75 374 103 796 Reduced by Siege Mode 19 | . . . . . . . . . 19 . . . . . . . . . . . . . . . . . . Redirected to Shielding 95 | . . . . . . . . . . . . . . . . . 95 . . . . . . . . . . Ignored by Resistances 21 | . . . . . . . . . . . . . 21 . . . . . . . . . . . . . . Regen/Repaired (Parts) 488 | . . . . . . . . . . . . . . . . . 253 . . 52 . 33 137 13 . . . Core Remaining (%) 57 | 100 . 36 . . . 23 . . . . 43 . . . . 88 . . . . 85 . 70 . . 14 . Volleys Fired 496 | 3 32 3 22 12 . 32 30 32 11 12 3 3 5 5 . 7 23 5 4 1 7 49 33 13 22 51 76 Largest 10 | 2 2 2 4 4 . 4 7 8 8 8 2 10 10 7 . 7 8 10 10 1 10 10 10 10 10 10 10 Hottest 620 | 60 40 40 80 80 . 86 143 203 206 211 68 262 262 183 . 183 216 253 253 100 248 294 301 396 368 397 620 Shots Fired 3035 | 6 39 6 88 48 . 127 201 136 84 85 6 28 37 35 . 49 140 42 36 1 30 337 294 129 219 399 433 Gun 3006 | 6 39 6 88 48 . 127 201 136 84 85 6 28 37 35 . 49 140 42 36 . 30 337 294 128 219 382 423 Cannon 15 | . . . . . . . . . . . . . . . . . . . . 1 . . . 1 . 13 . Launcher 14 | . . . . . . . . . . . . . . . . . . . . . . . . . . 4 10 Special . | . . . . . . . . . . . . . . . . . . . . . . . . . . . . Kinetic 2870 | 3 39 6 88 48 . 127 201 136 84 85 6 28 37 35 . 49 140 42 36 . 30 337 294 129 219 395 276 Thermal 147 | . . . . . . . . . . . . . . . . . . . . . . . . . . . 147 Explosive . | . . . . . . . . . . . . . . . . . . . . . . . . . . . . Electromagnetic 3 | 3 . . . . . . . . . . . . . . . . . . . . . . . . . . . Entropic 15 | . . . . . . . . . . . . . . . . . . . . 1 . . . . . 4 10 Robot Hit Streak 57 | 2 4 5 11 8 . 13 11 10 18 9 . 9 16 9 . 13 10 4 5 . 15 16 33 13 42 57 14 Robot Miss Streak 8 | 2 3 . 8 2 . 4 6 8 3 4 . 5 4 4 . 4 6 5 5 . 1 8 5 3 4 8 6 Penetration Max 2 | . . . . . . . . . 1 . . . . 1 . 1 1 . 1 . . 1 1 1 1 2 2 Secondary Targets 87 | . 1 . 5 . . 5 . 2 4 1 . 2 2 2 . 1 3 . . . 2 5 7 2 3 13 27 Max Gunslinging Chain 3 | . 1 . 3 . . 2 . 1 1 1 . 2 1 1 . 1 1 . . . 1 1 2 1 2 2 2 Shots Hit Robots 1796 | 3 24 5 51 33 . 84 98 76 67 52 . 15 23 29 . 35 90 18 12 . 17 168 207 64 133 240 252 Core Hits 960 | . 10 1 23 9 . 33 40 46 38 26 . 7 16 18 . 18 56 10 8 . 7 69 69 31 72 164 189 Critical Kills 71 | . . . 1 1 . 1 1 . . 2 . . . . . 1 2 1 . . 1 5 11 6 4 18 16 Critical Parts Destroyed 85 | . . . 1 . . . . . 1 1 . . . 2 . . . . 1 . . 8 17 10 11 21 12 Critical Strikes 177 | . . . 2 1 . 1 1 . 2 3 . . . 2 . 1 2 1 2 . 1 13 28 16 15 46 40 Burn 12 | . . . . . . . . . . . . . . . . . . . . . . . . . . . 12 Destroy 165 | . . . 2 1 . 1 1 . 2 3 . . . 2 . 1 2 1 2 . 1 13 28 16 15 46 28 Melee Attacks 3 | . . . . . . . . . . . . . 1 . . 1 1 . . . . . . . . . . Impact 3 | . . . . . . . . . . . . . 1 . . 1 1 . . . . . . . . . . Slashing . | . . . . . . . . . . . . . . . . . . . . . . . . . . . . Piercing . | . . . . . . . . . . . . . . . . . . . . . . . . . . . . Sneak Attacks 1 | . . . . . . . . . . . . . . . . 1 . . . . . . . . . . . Combat Hostiles . | . . . . . . . . . . . . . . . . . . . . . . . . . . . . Follow-up Attacks . | . . . . . . . . . . . . . . . . . . . . . . . . . . . . Damage Inflicted 43306 | 37 240 64 462 267 . 845 1015 1230 1347 933 16 216 456 535 . 768 2069 201 287 . 190 2293 2991 1117 2984 9233 13510 Guns 34760 | 37 240 64 462 267 . 845 1015 1230 1347 933 . 201 456 535 . 676 1917 201 287 . 190 2293 2991 1103 2960 6552 7958 Cannons 155 | . . . . . . . . . . . . . . . . . . . . . . . . 14 . 141 . Explosions 8244 | . . . . . . . . . . . . . . . . . 152 . . . . . . . . 2540 5552 Melee 92 | . . . . . . . . . . . . . . . . 92 . . . . . . . . . . . Ramming 55 | . . . . . . . . . . . 16 15 . . . . . . . . . . . . 24 . . Kinetic 32397 | 10 240 64 462 267 . 845 1015 1230 1347 933 . 201 456 535 . 676 1917 201 287 . 190 2293 2991 1117 2960 6693 5467 Thermal 2491 | . . . . . . . . . . . . . . . . . . . . . . . . . . . 2491 Explosive 225 | . . . . . . . . . . . . . . . . . 27 . . . . . . . . . 198 Electromagnetic 152 | 27 . . . . . . . . . . . . . . . . 125 . . . . . . . . . . Impact 92 | . . . . . . . . . . . . . . . . 92 . . . . . . . . . . . Slashing . | . . . . . . . . . . . . . . . . . . . . . . . . . . . . Piercing . | . . . . . . . . . . . . . . . . . . . . . . . . . . . . Entropic 7894 | . . . . . . . . . . . . . . . . . . . . . . . . . . 2540 5354 Highest Corruption 7 | . . . . . . . 3 3 3 3 . . . . . . 2 2 2 2 . . 1 . 1 7 1 Average Corruption 2 | . . . . . . . 1 3 3 2 . . . . . . 1 2 2 2 . . 1 . 1 1 1 Corruption Purged 3 | . . . . . . . . . . 3 . . . . . . . . . . . . . . . . . Corruption Blocked . | . . . . . . . . . . . . . . . . . . . . . . . . . . . . Effects 94 | . . . . . . . 5 30 6 4 . . . . . . 8 4 5 . . . 2 . 6 19 5 Message Errors 22 | . . . . . . . . 6 3 3 . . . . . . 1 1 1 . . . . . 1 5 1 Matter Fused 20 | . . . . . . . 2 9 1 . . . . . . . 1 . . . . . . . 2 3 2 Heat Flow Errors 9 | . . . . . . . . 4 . . . . . . . . . 1 1 . . . . . 1 2 . Energy Discharges 9 | . . . . . . . . 1 2 . . . . . . . 3 . 1 . . . 1 . . 1 . Data Loss (minor) 15 | . . . . . . . 1 5 . . . . . . . . 1 1 . . . . . . 1 5 1 Data Loss (major) 5 | . . . . . . . 1 2 . . . . . . . . 1 . . . . . . . . 1 . Misfires 5 | . . . . . . . 1 2 . . . . . . . . . 1 . . . . 1 . . . . Alerts 1 | . . . . . . . . 1 . . . . . . . . . . . . . . . . . . . Weapon Failures 8 | . . . . . . . . . . 1 . . . . . . 1 . 2 . . . . . 1 2 1 Overload Shots . | . . . . . . . . . . . . . . . . . . . . . . . . . . . . Overflow Damage 362 | . . . . . . . . . . . . . . . . 87 . . . . . . . . . 78 197 Projectiles . | . . . . . . . . . . . . . . . . . . . . . . . . . . . . Explosions 275 | . . . . . . . . . . . . . . . . . . . . . . . . . . 78 197 Melee 87 | . . . . . . . . . . . . . . . . 87 . . . . . . . . . . . Knockbacks . | . . . . . . . . . . . . . . . . . . . . . . . . . . . . Impact . | . . . . . . . . . . . . . . . . . . . . . . . . . . . . Kinetic . | . . . . . . . . . . . . . . . . . . . . . . . . . . . . Secondary . | . . . . . . . . . . . . . . . . . . . . . . . . . . . . Self-Inflicted Damage 150 | . . . . . . . . . . . . . . . . . . . . . . . . . 12 . 138 Shots 1 | . . . . . . . . . . . . . . . . . . . . . . . . . . . 1 Rammed 4 | . . . . . . . . . . . 1 1 . . . . . . . . . . . . 2 . . Targets Rammed 4 | . . . . . . . . . . . 1 1 . . . . . . . . . . . . 2 . . Kicked . | . . . . . . . . . . . . . . . . . . . . . . . . . . . . Crushed . | . . . . . . . . . . . . . . . . . . . . . . . . . . . . Highest Temperature 431 | 20 10 . 119 68 . 164 262 203 345 286 . 182 366 108 . 12 57 264 316 40 256 354 402 431 286 198 194 Average Temperature 91 | 15 3 . 35 34 . 52 92 46 121 81 . 88 161 49 . 7 28 103 139 40 133 141 107 160 122 76 85 Received Heat Transfer 1872 | . 30 . 33 . . 48 210 168 . 57 12 36 66 21 . 72 147 . . . 12 58 54 12 41 307 488 Effects 8 | . . . . . . . . . 1 . . . 1 . . . . . . . 1 . 4 1 . . . Shutdowns 1 | . . . . . . . . . . . . . . . . . . . . . . . 1 . . . . Energy Bleed 1 | . . . . . . . . . . . . . . . . . . . . . . . 1 . . . . Interference 4 | . . . . . . . . . . . . . . . . . . . . . 1 . 2 1 . . . Short Circuit 1 | . . . . . . . . . . . . . 1 . . . . . . . . . . . . . . Damage (minor) 1 | . . . . . . . . . 1 . . . . . . . . . . . . . . . . . . Siege Activations 5 | . . . . . . . . . 1 . . . 1 . . 3 . . . . . . . . . . . Total Turns 48 | . . . . . . . . . 9 . . . 7 . . 32 . . . . . . . . . . . Longest Duration 21 | . . . . . . . . . 9 . . . 7 . . 21 . . . . . . . . . . . Martial Activations . | . . . . . . . . . . . . . . . . . . . . . . . . . . . . Shielding Activations . | . . . . . . . . . . . . . . . . . . . . . . . . . . . . Robots Disrupted . | . . . . . . . . . . . . . . . . . . . . . . . . . . . . Combat Hostiles . | . . . . . . . . . . . . . . . . . . . . . . . . . . . . Robots Corrupted 1 | . . . . . . . . . . . . . . . . . . . . . . . . . 1 . . Combat Hostiles . | . . . . . . . . . . . . . . . . . . . . . . . . . . . . Parts Fried 9 | . . . . . . 1 4 . . . . . . . . . . 1 . . . . . 2 1 . . Impact Corruptions 6 | . . . . . . . . . . . . . . . . 5 . . . . . . . . 1 . . Robots Melted 2 | . . . . . . . . . . . . . . . . . . . . . . . . . . . 2 Combat Hostiles 2 | . . . . . . . . . . . . . . . . . . . . . . . . . . . 2 Parts Melted 9 | . . . 1 1 . 1 . . . 1 . . . . . . 1 . . . . . . . . . 4 Heat Transferred 4466 | . . . . . . . . . . . . . . . . . . . . . . . . . . . 4466 Parts Sabotaged 7 | . . . . . . . . . . . . . . . . . . . . . . . 3 . . . 4 Parts Stolen . | . . . . . . . . . . . . . . . . . . . . . . . . . . . . Parts Stripped . | . . . . . . . . . . . . . . . . . . . . . . . . . . . . Power Chain Reactions . | . . . . . . . . . . . . . . . . . . . . . . . . . . . . Alert | -11 -10 -10 -9 -9 -7 -6 -6 -6 -6 -6 -6 -5 -5 -5 -5 -4 -4 -4 -4 -4 -3 -3 -3 -2 -2 -2 -1 ------- Run | Yrd Mat Min Mat Min Zio Pro Fac Ext Cet Arc Hub Fac Upp Upp Zhi Pro Fac Upp Upp War Pro Res Qua Res Tes Frg Acc Maximum Alert Level 5 | . 1 . 1 . . . 2 3 2 1 . . . . . . 2 . . . . 2 3 2 3 5 5 Low Security (%) 38 | 100 52 100 68 100 . . 80 55 . . 100 100 . . . . 17 . . . . 47 26 3 25 . . Level 1 30 | . 47 . 31 . . . 7 4 . 100 . . . . . . 32 . . . . 45 46 87 20 . . Level 2 15 | . . . . . . . 11 33 100 . . . . . . . 50 . . . . 7 9 8 1 32 . Level 3 5 | . . . . . . . . 6 . . . . . . . . . . . . . . 17 . 53 5 . Level 4 3 | . . . . . . . . . . . . . . . . . . . . . . . . . . 36 5 Level 5 . | . . . . . . . . . . . . . . . . . . . . . . . . . . 5 1 High Security 5 | . . . . . . . . . . . . . . . . . . . . . . . . . . 19 93 Max Security . | . . . . . . . . . . . . . . . . . . . . . . . . . . . . Peak Influence 4390 | . 340 120 344 130 . . 448 828 583 367 81 118 . . . . 563 . . . . 516 836 429 1020 2624 4390 Initial 1574 | . . 120 37 130 . . 39 191 454 217 81 21 . . . . . . . . . 156 281 405 231 533 1574 Average 463 | . 186 107 180 30 . . 105 299 517 298 36 41 . . . . 367 . . . . 232 357 290 594 1259 2802 Influence Increases 16063 | . 455 25 467 45 . 346 732 1355 319 228 101 226 199 131 . 214 865 62 90 66 312 1046 1069 552 1069 2683 3406 Destroy 0b10 Robot/C 7760 | . 220 20 280 20 . 220 320 620 160 80 . 140 140 100 . 140 480 40 80 40 160 480 480 280 340 1240 1680 Destroy 0b10 Robot/NC 420 | . 20 . 35 15 . 5 45 20 10 35 5 10 . 5 . . 15 . . . . 40 10 10 35 40 65 Destroy Leader 1126 | . 52 . 60 . . 40 84 84 . . . 22 20 . . 20 74 10 10 . 20 108 54 62 62 112 232 Allied During Kill 3004 | . 69 5 89 9 . 81 100 566 144 81 2 46 39 26 . 39 118 12 . 26 102 223 100 82 104 340 601 Successful Hack 171 | . 7 . . . . . . . . . 10 . . . . . 31 . . . . 76 31 16 . . . Select Force Hacks 110 | . 60 . . . . . . . . . 50 . . . . . . . . . . . . . . . . Disable Machine 750 | . . . . . . . 75 . . 30 30 . . . . . 60 . . . . 75 120 15 90 180 75 Anti-Garrison Action 150 | . . . . . . . . . . . . . . . . . . . . . . . . . . . 150 Destroy Structure 2197 | . 12 . 3 1 . . 3 5 5 2 4 8 . . . . 42 . . . . 44 244 72 438 771 543 Partial Spotted 75 | . 15 . . . . . 15 45 . . . . . . . . . . . . . . . . . . . Lose Combat Pursuer 300 | . . . . . . . 90 15 . . . . . . . 15 45 . . . 30 . 30 15 . . 60 Influence Decreases 11703 | . 147 238 228 379 . 282 405 934 588 536 292 244 225 82 49 214 324 361 157 183 138 778 847 861 534 1007 1670 Entered New Map 4335 | . . 188 58 204 . . 25 200 358 326 154 23 10 . 49 . . 201 47 175 58 76 219 317 182 415 1050 Time Decay 5523 | . 147 20 140 155 . 252 273 534 140 190 70 201 205 82 . 204 294 140 110 8 80 642 398 534 342 342 20 Lost Part 1150 | . . 30 10 20 . 10 70 60 30 20 . . 10 . . 10 30 20 . . . . 80 10 10 250 480 Lost Ally 460 | . . . 20 . . 20 . 140 60 . 20 20 . . . . . . . . . 60 . . . . 120 Purge Threat 235 | . . . . . . . 37 . . . 48 . . . . . . . . . . . 150 . . . . Squads Dispatched 80 | . 4 . 2 . . . 6 2 . . 1 2 . . . . 3 . . . . 7 4 3 9 8 29 Investigation 10 | . 2 . . . . . 1 1 . . 1 . . . . . 1 . . . . 3 . 1 . . . Extermination 10 | . . . . . . . 2 . . . . 1 . . . . 1 . . . . . 2 . 2 2 . Reinforcement 20 | . 2 . 2 . . . 3 1 . . . 1 . . . . 1 . . . . 4 1 2 3 . . Assault 32 | . . . . . . . . . . . . . . . . . . . . . . . 1 . 1 6 24 Garrison 8 | . . . . . . . . . . . . . . . . . . . . . . . . . 3 . 5 Intercept . | . . . . . . . . . . . . . . . . . . . . . . . . . . . . Searches Triggered . | . . . . . . . . . . . . . . . . . . . . . . . . . . . . Construction Impeded 1 | . . . . . . . . . . . . . . . . . . . . . . 1 . . . . . Haulers Reinforced 5 | . . . . . . . 1 . . . . . . . . . 1 . . . . 1 . 2 . . . Active Scanning Responses . | . . . . . . . . . . . . . . . . . . . . . . . . . . . . Cargo Convoy Interrupts . | . . . . . . . . . . . . . . . . . . . . . . . . . . . . Stealth | -11 -10 -10 -9 -9 -7 -6 -6 -6 -6 -6 -6 -5 -5 -5 -5 -4 -4 -4 -4 -4 -3 -3 -3 -2 -2 -2 -1 --------- Run | Yrd Mat Min Mat Min Zio Pro Fac Ext Cet Arc Hub Fac Upp Upp Zhi Pro Fac Upp Upp War Pro Res Qua Res Tes Frg Acc Distress Signals 39 | . 2 . 5 1 . . 1 3 2 1 1 . . . . . 2 . . . . 4 . 12 1 1 3 Communications Jammed 5 | . . . . . . . . . . . . . . . . . 5 . . . . . . . . . . Distress Signals . | . . . . . . . . . . . . . . . . . . . . . . . . . . . . Times Spotted 469 | . 17 2 19 2 . 11 26 35 10 8 4 8 7 5 . 7 28 2 4 1 6 37 26 15 19 54 116 Peak Tracking Total 14 | . 5 2 6 1 . 4 6 5 5 2 7 4 4 5 . 4 7 2 4 3 4 7 5 4 6 9 14 Tactical Retreats 14 | . . . . . . . 4 1 . . . . . . . 1 2 . . . 1 . 1 1 . . 3 Traps | -11 -10 -10 -9 -9 -7 -6 -6 -6 -6 -6 -6 -5 -5 -5 -5 -4 -4 -4 -4 -4 -3 -3 -3 -2 -2 -2 -1 ------- Run | Yrd Mat Min Mat Min Zio Pro Fac Ext Cet Arc Hub Fac Upp Upp Zhi Pro Fac Upp Upp War Pro Res Qua Res Tes Frg Acc Traps Triggered 13 | . . . . . . . 4 5 . . . . . . . . . . . . . 1 1 . 1 1 . Indirectly . | . . . . . . . . . . . . . . . . . . . . . . . . . . . . Trap Hack Attempts . | . . . . . . . . . . . . . . . . . . . . . . . . . . . . Triggered . | . . . . . . . . . . . . . . . . . . . . . . . . . . . . Disarmed . | . . . . . . . . . . . . . . . . . . . . . . . . . . . . Reprogrammed . | . . . . . . . . . . . . . . . . . . . . . . . . . . . . Reused . | . . . . . . . . . . . . . . . . . . . . . . . . . . . . Traps Extracted . | . . . . . . . . . . . . . . . . . . . . . . . . . . . . Installed 3 | . . . . . . 3 . . . . . . . . . . . . . . . . . . . . . Triggered . | . . . . . . . . . . . . . . . . . . . . . . . . . . . . Most Traps Carried 1 | . . . . . . 1 . . . . . . . . . . . . . . . . . . . . . Machines | -11 -10 -10 -9 -9 -7 -6 -6 -6 -6 -6 -6 -5 -5 -5 -5 -4 -4 -4 -4 -4 -3 -3 -3 -2 -2 -2 -1 ---------- Run | Yrd Mat Min Mat Min Zio Pro Fac Ext Cet Arc Hub Fac Upp Upp Zhi Pro Fac Upp Upp War Pro Res Qua Res Tes Frg Acc Machines Disabled 60 | . . . . . . . 5 1 . 2 2 . . . . . 4 . . 1 . 5 9 1 7 17 6 Max in Single Turn 2 | . . . . . . . . . . 1 2 . . . . . 1 . . 1 . 1 1 . 1 2 2 Garrison Access 3 | . . . . . . . . . . . . . . . . . 1 . . . . . . 1 . . 1 Network Hub 2 | . . . . . . . . . . . 2 . . . . . . . . . . . . . . . . Machines Repaired . | . . . . . . . . . . . . . . . . . . . . . . . . . . . . Machines Dismantled . | . . . . . . . . . . . . . . . . . . . . . . . . . . . . Machines Sabotaged 1 | . . . . . . . . . . . 1 . . . . . . . . . . . . . . . . Overloaded Fab Kills . | . . . . . . . . . . . . . . . . . . . . . . . . . . . . Hacking | -11 -10 -10 -9 -9 -7 -6 -6 -6 -6 -6 -6 -5 -5 -5 -5 -4 -4 -4 -4 -4 -3 -3 -3 -2 -2 -2 -1 --------- Run | Yrd Mat Min Mat Min Zio Pro Fac Ext Cet Arc Hub Fac Upp Upp Zhi Pro Fac Upp Upp War Pro Res Qua Res Tes Frg Acc Machines Accessed 38 | . 4 . . . . . 4 1 . . 3 1 . . 3 . 5 . . 2 . 6 8 1 . . . Terminals 15 | . 2 . . . . . 2 1 . . 3 1 . . . . 1 . . . . 1 4 . . . . Fabricators 4 | . . . . . . . 1 . . . . . . . . . 1 . . . . 2 . . . . . Repair Stations 6 | . . . . . . . 1 . . . . . . . . . 1 . . . . 2 2 . . . . Recycling Units 2 | . 2 . . . . . . . . . . . . . . . . . . . . . . . . . . Scanalyzers 5 | . . . . . . . . . . . . . . . . . 1 . . . . 1 2 1 . . . Garrison Access 1 | . . . . . . . . . . . . . . . . . 1 . . . . . . . . . . Total Hacks 104 | . 5 . . . . . 14 1 . . 9 2 . . 6 . 19 . . 2 . 21 22 3 . . . Successful 57 | . 4 . . . . . 6 1 . . 6 1 . . 6 . 13 . . 2 . 9 7 2 . . . Failed 47 | . 1 . . . . . 8 . . . 3 1 . . . . 6 . . . . 12 15 1 . . . Catastrophic 14 | . 1 . . . . . 4 . . . . . . . . . 1 . . . . 3 5 . . . . Database Lockouts . | . . . . . . . . . . . . . . . . . . . . . . . . . . . . Manual 25 | . 5 . . . . . 6 . . . 5 1 . . . . 3 . . . . . 5 . . . . Terminals 39 | . 3 . . . . . 7 1 . . 9 2 . . . . 5 . . . . 2 10 . . . . Fabricators 17 | . . . . . . . 5 . . . . . . . . . 4 . . . . 8 . . . . . Repair Stations 23 | . . . . . . . 2 . . . . . . . . . 6 . . . . 8 7 . . . . Recycling Units 2 | . 2 . . . . . . . . . . . . . . . . . . . . . . . . . . Scanalyzers 14 | . . . . . . . . . . . . . . . . . 3 . . . . 3 5 3 . . . Garrison Access 1 | . . . . . . . . . . . . . . . . . 1 . . . . . . . . . . Terminal Hacks 26 | . 2 . . . . . 3 1 . . 5 1 . . 6 . 3 . . 2 . 1 2 . . . . Record 1 | . . . . . . . . . . . . . . . 1 . . . . . . . . . . . . Part Schematic 2 | . 1 . . . . . . . . . . . . . 1 . . . . . . . . . . . . Robot Analysis 1 | . . . . . . . . . . . . . . . . . 1 . . . . . . . . . . Prototype ID Bank 4 | . . . . . . . . . . . . . . . 4 . . . . . . . . . . . . Open Door 2 | . . . . . . . . . . . . . . . . . . . . 2 . . . . . . . Level Access Points 1 | . . . . . . . . . . . 1 . . . . . . . . . . . . . . . . Branch Access Points 3 | . . . . . . . 1 . . . . 1 . . . . 1 . . . . . . . . . . Terminal Index 1 | . . . . . . . . . . . 1 . . . . . . . . . . . . . . . . Repair Station Index 1 | . . . . . . . . . . . . . . . . . 1 . . . . . . . . . . Recycling Unit Index 1 | . 1 . . . . . . . . . . . . . . . . . . . . . . . . . . Alert Level 2 | . . . . . . . . 1 . . . . . . . . . . . . . . 1 . . . . Unreport Threat 5 | . . . . . . . 2 . . . 2 . . . . . . . . . . . 1 . . . . Patrol Status 1 | . . . . . . . . . . . . . . . . . . . . . . 1 . . . . . Zone Layout 1 | . . . . . . . . . . . 1 . . . . . . . . . . . . . . . . Fabricator Hacks 10 | . . . . . . . 3 . . . . . . . . . 2 . . . . 5 . . . . . Network Status 1 | . . . . . . . . . . . . . . . . . . . . . . 1 . . . . . Load Schematic 5 | . . . . . . . 2 . . . . . . . . . 1 . . . . 2 . . . . . Build 4 | . . . . . . . 1 . . . . . . . . . 1 . . . . 2 . . . . . Repair Station Hacks 10 | . . . . . . . . . . . . . . . . . 5 . . . . 2 3 . . . . Scan Component 5 | . . . . . . . . . . . . . . . . . 2 . . . . 1 2 . . . . Repair 4 | . . . . . . . . . . . . . . . . . 2 . . . . 1 1 . . . . Refit 1 | . . . . . . . . . . . . . . . . . 1 . . . . . . . . . . Recycling Unit Hacks . | . . . . . . . . . . . . . . . . . . . . . . . . . . . . Scanalyzer 6 | . . . . . . . . . . . . . . . . . 2 . . . . 1 1 2 . . . Insert Component 1 | . . . . . . . . . . . . . . . . . 1 . . . . . . . . . . Analyze 1 | . . . . . . . . . . . . . . . . . 1 . . . . . . . . . . Retrieve Study 4 | . . . . . . . . . . . . . . . . . . . . . . 1 1 2 . . . Garrison Access Hacks 1 | . . . . . . . . . . . . . . . . . 1 . . . . . . . . . . Seal Access 1 | . . . . . . . . . . . . . . . . . 1 . . . . . . . . . . Unauthorized Hacks 4 | . 2 . . . . . . . . . 1 . . . . . . . . . . . 1 . . . . Terminals 2 | . . . . . . . . . . . 1 . . . . . . . . . . . 1 . . . . Track 1 | . . . . . . . . . . . . . . . . . . . . . . . 1 . . . . Sabotage 1 | . . . . . . . . . . . 1 . . . . . . . . . . . . . . . . Fabricators . | . . . . . . . . . . . . . . . . . . . . . . . . . . . . Repair Stations . | . . . . . . . . . . . . . . . . . . . . . . . . . . . . Recycling Units 2 | . 2 . . . . . . . . . . . . . . . . . . . . . . . . . . Tunnel 2 | . 2 . . . . . . . . . . . . . . . . . . . . . . . . . . Scanalyzers . | . . . . . . . . . . . . . . . . . . . . . . . . . . . . Garrison Access . | . . . . . . . . . . . . . . . . . . . . . . . . . . . . Data Cores Recovered 1 | . . . . . . . . . . . . . . . . . . . . . . 1 . . . . . Used . | . . . . . . . . . . . . . . . . . . . . . . . . . . . . Hacking Detections 23 | . 1 . . . . . 3 1 . . 2 1 . . . . 4 . . . . 4 6 1 . . . Full Trace Events 5 | . 1 . . . . . 1 . . . . . . . . . 1 . . . . 2 . . . . . Feedback Events . | . . . . . . . . . . . . . . . . . . . . . . . . . . . . Feedback Blocked . | . . . . . . . . . . . . . . . . . . . . . . . . . . . . Robot Schematics Acquired . | . . . . . . . . . . . . . . . . . . . . . . . . . . . . Robots Built . | . . . . . . . . . . . . . . . . . . . . . . . . . . . . Authchips . | . . . . . . . . . . . . . . . . . . . . . . . . . . . . Time . | . . . . . . . . . . . . . . . . . . . . . . . . . . . . Total Robot Build Rating . | . . . . . . . . . . . . . . . . . . . . . . . . . . . . Part Schematics Acquired 3 | . 1 . . . . . . . . . . . . . 1 . 1 . . . . . . . . . . Parts Built 12 | . . . . . . . 3 . . . . . . . . . 3 . . . . 6 . . . . . Authchips . | . . . . . . . . . . . . . . . . . . . . . . . . . . . . Time 118 | . . . . . . . 51 . . . . . . . . . 25 . . . . 42 . . . . . Total Part Build Rating 12 | . . . . . . . 3 . . . . . . . . . 3 . . . . 6 . . . . . Part Studies Acquired 4 | . . . . . . . . . . . . . . . . . . . . . . 1 1 2 . . . Parts Repaired 4 | . . . . . . . . . . . . . . . . . 2 . . . . 1 1 . . . . Time 266 | . . . . . . . . . . . . . . . . . 102 . . . . 56 108 . . . . Parts Recycled . | . . . . . . . . . . . . . . . . . . . . . . . . . . . . Recycled Matter . | . . . . . . . . . . . . . . . . . . . . . . . . . . . . Retrieved Matter . | . . . . . . . . . . . . . . . . . . . . . . . . . . . . Retrieved Components . | . . . . . . . . . . . . . . . . . . . . . . . . . . . . Parts Scanalyzed 1 | . . . . . . . . . . . . . . . . . 1 . . . . . . . . . . Part Schematics Acquired 1 | . . . . . . . . . . . . . . . . . 1 . . . . . . . . . . Parts Damaged . | . . . . . . . . . . . . . . . . . . . . . . . . . . . . Bothacking | -11 -10 -10 -9 -9 -7 -6 -6 -6 -6 -6 -6 -5 -5 -5 -5 -4 -4 -4 -4 -4 -3 -3 -3 -2 -2 -2 -1 ------------ Run | Yrd Mat Min Mat Min Zio Pro Fac Ext Cet Arc Hub Fac Upp Upp Zhi Pro Fac Upp Upp War Pro Res Qua Res Tes Frg Acc Used RIF Installer . | . . . . . . . . . . . . . . . . . . . . . . . . . . . . Robots Hacked . | . . . . . . . . . . . . . . . . . . . . . . . . . . . . Non-combat . | . . . . . . . . . . . . . . . . . . . . . . . . . . . . Combat . | . . . . . . . . . . . . . . . . . . . . . . . . . . . . Robot Hacks Applied . | . . . . . . . . . . . . . . . . . . . . . . . . . . . . Relay Couplers Released 5 | . . . . . . . . . . . . . . . . . . . . . . . . 2 . . 3 Machine Destruction 5 | . . . . . . . . . . . . . . . . . . . . . . . . 2 . . 3 Fabnet Peak Effective % . | . . . . . . . . . . . . . . . . . . . . . . . . . . . . Robots Rewired 24 | . . . . . . . . 19 . . . . . . . . . . . 5 . . . . . . . Allies Hacked . | . . . . . . . . . . . . . . . . . . . . . . . . . . . . Hacks Repelled . | . . . . . . . . . . . . . . . . . . . . . . . . . . . . Allies | -11 -10 -10 -9 -9 -7 -6 -6 -6 -6 -6 -6 -5 -5 -5 -5 -4 -4 -4 -4 -4 -3 -3 -3 -2 -2 -2 -1 -------- Run | Yrd Mat Min Mat Min Zio Pro Fac Ext Cet Arc Hub Fac Upp Upp Zhi Pro Fac Upp Upp War Pro Res Qua Res Tes Frg Acc Total Allies 37 | . 1 1 . 3 . . . 20 . . . . . . . . . . . 5 . . . . . . 7 Largest Group 14 | . 1 2 2 4 4 4 2 14 10 7 3 2 1 1 1 1 1 1 1 6 6 5 1 1 1 1 8 Highest-Rated Group 493 | . 56 87 88 106 114 114 124 493 374 305 215 179 141 141 141 141 167 162 160 448 448 412 186 215 236 240 212 Highest-Rated Ally 240 | . 56 56 66 66 74 84 123 122 131 137 137 141 141 141 141 141 167 162 160 168 171 186 186 215 236 240 212 Total Orders 30 | . . . . . . . . . 6 3 . . . . . . . . . 2 . 1 . 14 4 . . STAY 6 | . . . . . . . . . 3 1 . . . . . . . . . 1 . . . . 1 . . FOLLOW 6 | . . . . . . . . . 3 2 . . . . . . . . . 1 . . . . . . . EXPLORE 11 | . . . . . . . . . . . . . . . . . . . . . . 1 . 8 2 . . RETURN 7 | . . . . . . . . . . . . . . . . . . . . . . . . 6 1 . . Ally Attacks 692 | . 29 3 24 5 . 51 29 129 33 6 11 10 6 6 . 9 23 3 . 7 18 37 15 16 13 55 154 Total Damage 32531 | . 515 24 392 167 . 1013 1997 2977 1007 635 153 343 261 162 . 764 1361 121 . 160 1133 3178 1234 1016 1930 6399 5589 Kills 195 | . 11 . 9 2 . 3 13 26 5 5 1 6 3 3 . 3 14 . . 2 6 18 8 4 8 24 21 Allies Corrupted 1 | . . . . . . . . 1 . . . . . . . . . . . . . . . . . . . Allies Melted 1 | . . . . . . . . . . . . . . . . . . . . . . . . 1 . . . Intel | -11 -10 -10 -9 -9 -7 -6 -6 -6 -6 -6 -6 -5 -5 -5 -5 -4 -4 -4 -4 -4 -3 -3 -3 -2 -2 -2 -1 ------- Run | Yrd Mat Min Mat Min Zio Pro Fac Ext Cet Arc Hub Fac Upp Upp Zhi Pro Fac Upp Upp War Pro Res Qua Res Tes Frg Acc Active Infowar (turns) 3179 | . . . 34 552 193 . 193 1449 80 . . . . . . . 625 . . . . . . 53 . . . Optics 2862 | . . . 34 552 193 . . 1449 80 . . . . . . . 501 . . . . . . 53 . . . Sensors 193 | . . . . . . . 193 . . . . . . . . . . . . . . . . . . . . Jamming 124 | . . . . . . . . . . . . . . . . . 124 . . . . . . . . . . Robot Analysis Total 1 | . . . . . . . . . . . . . . . . . 1 . . . . . . . . . . Derelict Logs Recovered 8 | . . . . 2 1 2 . . . . . . . . . 1 . . 2 . . . . . . . . Drone Launches 10 | . . . . . . . . . . . . . . . . . . . . . . 1 . 7 2 . . Drone Recoveries 9 | . . . . . . . . . . . . . . . . . . . . . . . . 7 2 . . Exploration | -11 -10 -10 -9 -9 -7 -6 -6 -6 -6 -6 -6 -5 -5 -5 -5 -4 -4 -4 -4 -4 -3 -3 -3 -2 -2 -2 -1 ------------- Run | Yrd Mat Min Mat Min Zio Pro Fac Ext Cet Arc Hub Fac Upp Upp Zhi Pro Fac Upp Upp War Pro Res Qua Res Tes Frg Acc Turns Passed 17514 | 9 300 46 296 552 618 578 897 1500 299 395 230 498 785 477 245 442 758 291 226 623 353 2301 942 1505 763 965 620 Spaces Moved 12325 | 1 313 44 211 644 773 494 711 1084 130 169 123 278 316 190 142 228 696 359 291 793 328 1670 518 762 347 467 243 Core 2376 | . 21 9 211 644 773 350 368 . . . . . . . . . . . . . . . . . . . . Treads 1547 | . . . . . . . . . 102 169 123 278 316 190 142 227 . . . . . . . . . . . Legs 347 | 1 5 . . . . . . 313 28 . . . . . . . . . . . . . . . . . . Wheels 3724 | . . . . . . . 90 . . . . . . . . . . . . . . 1297 518 762 347 467 243 Hover 2868 | . . . . . . . . 27 . . . . . . . 1 696 359 291 793 328 373 . . . . . Flight 1463 | . 287 35 . . . 144 253 744 . . . . . . . . . . . . . . . . . . . Fastest Speed 32 | 120 37 37 50 50 50 35 32 35 120 160 160 160 240 160 160 160 42 42 42 42 42 42 110 110 130 110 92 Average Speed 85 | 120 39 39 50 50 50 46 61 63 151 160 160 160 240 235 160 160 49 42 42 42 42 83 110 121 130 128 109 Slowest Speed 240 | 120 120 50 50 50 50 100 150 195 160 160 160 240 240 240 160 196 142 42 42 42 42 110 190 130 130 150 111 Overloaded Moves . | . . . . . . . . . . . . . . . . . . . . . . . . . . . . Propulsion Burnouts . | . . . . . . . . . . . . . . . . . . . . . . . . . . . . Robots Hopped 12 | . 3 . . . . . 3 6 . . . . . . . . . . . . . . . . . . . Potential Cave-ins . | . . . . . . . . . . . . . . . . . . . . . . . . . . . . Cave-ins Triggered . | . . . . . . . . . . . . . . . . . . . . . . . . . . . . Exploration Rate (%) 45 | 2 49 15 20 82 82 67 17 85 63 76 12 10 54 38 60 46 13 59 46 87 45 39 67 51 55 17 4 Regions Visited 27 Branch Regions 19 Pre-discovered Areas 3 | . 2 . . . . . . . . . . . . . . . . . 1 . . . . . . . . Known Exits Taken 7 | . . . . . . 1 1 . . . 1 1 . . . . 1 . . . . 1 . . . 1 . Unknown Exits Taken 20 | 1 1 1 1 1 1 . . 1 1 1 . . 1 1 1 1 . 1 1 1 1 . 1 1 1 . . Scrap Searched 16 | . . 1 . . 4 4 . . . . . . . . . 2 . 4 . . 1 . . . . . . Spaces Dug 25 | . . . . . . . . . . . 3 . 1 . . . . . . . 6 9 . . . 6 . Terrain Destroyed 341 | . . . . . . . . . 1 3 3 . 2 3 . 3 8 7 1 1 9 11 9 23 30 37 190 Melee 1 | . . . . . . . . . . . . . 1 . . . . . . . . . . . . . . Projectile 149 | . . . . . . . . . 1 3 3 . 1 3 . 3 8 7 1 1 8 9 9 21 29 23 19 AOE 179 | . . . . . . . . . . . . . . . . . . . . . . . . . . 12 167 Terrain Rammed . | . . . . . . . . . . . . . . . . . . . . . . . . . . . . Walls Destroyed . | . . . . . . . . . . . . . . . . . . . . . . . . . . . . Machines Disabled . | . . . . . . . . . . . . . . . . . . . . . . . . . . . . Actions | -11 -10 -10 -9 -9 -7 -6 -6 -6 -6 -6 -6 -5 -5 -5 -5 -4 -4 -4 -4 -4 -3 -3 -3 -2 -2 -2 -1 --------- Run | Yrd Mat Min Mat Min Zio Pro Fac Ext Cet Arc Hub Fac Upp Upp Zhi Pro Fac Upp Upp War Pro Res Qua Res Tes Frg Acc Total 18372 | 3 457 66 355 852 1004 789 1113 1819 210 272 150 327 333 209 161 290 1057 489 390 1082 533 2532 821 1311 598 726 423 Wait 4701 | . 91 17 103 191 228 230 351 461 58 75 24 30 10 7 . 48 281 119 89 230 195 754 248 477 198 152 34 Move 12274 | . 306 43 210 643 772 493 704 1071 129 168 122 277 315 189 141 227 695 358 290 792 327 1669 517 761 346 466 243 Hop 12 | . 3 . . . . . 3 6 . . . . . . . . . . . . . . . . . . . Pick Up 86 | . 4 . 4 2 1 4 1 5 1 1 . 4 1 5 7 2 . 1 1 2 1 3 8 7 9 9 3 Fast Attach 183 | . 5 1 8 . 1 5 10 19 4 6 . 3 1 1 4 . 22 2 . 7 1 29 7 19 1 5 22 Attach 74 | . 2 . 4 1 . 2 4 10 1 2 . 1 . . 2 2 5 1 1 1 . . . 5 5 13 12 Detach 78 | . 3 . . . 1 1 4 9 1 4 . 3 . 2 2 . 12 1 . 1 1 7 2 7 3 6 8 Swap 37 | . . . . 2 . 8 1 3 . . . 1 . . . . 2 . 2 2 . 2 4 2 3 4 1 Drop 165 | . 11 2 4 1 1 11 5 11 5 4 . 4 . . 5 3 16 2 3 9 1 19 2 20 9 12 5 Fire 496 | 3 32 3 22 12 . 32 30 32 11 12 3 3 5 5 . 7 23 5 4 1 7 49 33 13 22 51 76 Melee 3 | . . . . . . . . . . . . . 1 . . 1 1 . . . . . . . . . . Ram 2 | . . . . . . . . . . . . . . . . . . . . . . . . . 2 . . Kick . | . . . . . . . . . . . . . . . . . . . . . . . . . . . . Crush 2 | . . . . . . . . . . . 1 1 . . . . . . . . . . . . . . . Escape Stasis 77 | . . . . . . . . 50 . . . . . . . . . . . . . . . . . 8 19 Rewire 179 | . . . . . . . . 142 . . . . . . . . . . . 37 . . . . . . . Trap 3 | . . . . . . 3 . . . . . . . . . . . . . . . . . . . . . Miscellaneous . | . . . . . . . . . . . . . . . . . . . . . . . . . . . . Route ------- -11/Scrapyard -10/Materials (discovered 2 exits: [*Mat] / [*Min]) -10/Mines -9/Materials -9/Mines (discovered 4 exits: [*Mat x2] / [*Exi] / [*Zio]) -7/Zion -6/Proximity Caves -6/Factory (discovered 5 exits: *Fac / Low x2 / *Ext x2) -6/Extension (discovered 3 exits: *Fac x2 / [*Cet]) -6/Cetus (discovered 2 exits: *Fac / [*Arc]) -6/Archives (discovered 2 exits: *Hub x2) -6/Hub_04(d) (discovered 4 exits: *Fac x4) -5/Factory (discovered 2 exits: *Upp x2) -5/Upper Caves -5/Upper Caves (discovered 2 exits: *Fac / *Zhi) -5/Zhirov -4/Proximity Caves -4/Factory (discovered 2 exits: *Upp x2) -4/Upper Caves -4/Upper Caves -4/Warlord -3/Proximity Caves -3/Research (discovered 2 exits: *Res / *Qua) -3/Quarantine -2/Research (discovered 3 exits: *Acc x2 / [*Tes]) -2/Testing (discovered 3 exits: *Acc / [*Sec] / [*Frg]) -2/Protoforge -1/Access History --------- Turn | Location | Event 10 | -11/Scrapyard | Discovered new exit (range 0) 10 | -11/Scrapyard | Entered Materials 142 | -10/Materials | Discovered new exit (range 16) 213 | -10/Materials | Discovered new exit (range 16) 301 | -10/Materials | Build established: Mutant 310 | -10/Materials | Entered Mines 316 | -10/Mines | Assembled infested the area 331 | -10/Mines | Core integrity fell below 50% 336 | -10/Mines | Discovered new exit (range 6) 339 | -10/Mines | Received a Mining Laser from a helpful Derelict 356 | -10/Mines | Entered Materials 356 | -9/Materials | Accompanied by 1 ally 356 | -9/Materials | Evolved 2 slots: Weapon x2 359 | -9/Materials | Lost 3 parts (2n1u) 547 | -9/Materials | Discovered new exit (range 14) 652 | -9/Materials | Entered Mines 681 | -9/Mines | Destroyed YI-UF0 689 | -9/Mines | Found Prototype Storage 690 | -9/Mines | Identified YI-UF0's Bottomless Matter Pit 703 | -9/Mines | Discovered new exit (range 5) 708 | -9/Mines | Discovered new exit (range 6) 733 | -9/Mines | A Derelict revealed a hidden shortcut to a safe place 773 | -9/Mines | Deemed a non-threat by the Exiles lab entrance 773 | -9/Mines | Discovered new exit (range 5) 921 | -9/Mines | Build established: Scavenger-Skirmisher 957 | -9/Mines | Received a Rocket Launcher from a helpful Derelict 1000 | -9/Mines | A weapon hastily lodged in a ceiling crevice suddenly fell to the ground 1055 | -9/Mines | Assisted by bots powering up and referring to "LRC-V3" 1204 | -9/Mines | Entered Zion 1204 | -7/Zion | Accompanied by 3 allies 1342 | -7/Zion | Discovered new exit (range 9) 1407 | -7/Zion | Learned Factory emergency access door positions 1426 | -7/Zion | Learned Factory interactive machine intel 1704 | -7/Zion | Build established: Gunner 1822 | -7/Zion | Entered Proximity Caves 1822 | -6/Proximity Caves | Accompanied by 3 allies 1832 | -6/Proximity Caves | Attracted the attention of an 0b10 checkpoint 1921 | -6/Proximity Caves | Core integrity fell below 50% 1990 | -6/Proximity Caves | Spotted B-75 Beast 2080 | -6/Proximity Caves | Destroyed B-75 Beast 2185 | -6/Proximity Caves | Identified exit to Factory 2189 | -6/Proximity Caves | Learned Factory garrison access intel 2400 | -6/Proximity Caves | Entered Factory 2400 | -6/Factory | Accompanied by 1 ally 2400 | -6/Factory | Evolved 6 slots: Utility x2, Weapon x4 2401 | -6/Factory | Identified exit to Lower Caves 2403 | -6/Factory | Loaded intel: 56 interactive machine locations 2404 | -6/Factory | Loaded intel: 4 garrison access locations 2594 | -6/Factory | Fabricated Lgt. Assault Rifle (x3) 2704 | -6/Factory | Build established: Executioner 2705 | -6/Factory | Identified exit to Extension 3083 | -6/Factory | Discovered new exit (range 8) 3190 | -6/Factory | Identified exit to Factory 3297 | -6/Factory | Entered Extension 3305 | -6/Extension | Rescued a captive Derelict 3311 | -6/Extension | Rescued a captive Derelict 3320 | -6/Extension | Rescued a captive Derelict 3321 | -6/Extension | Rescued a captive Derelict 3324 | -6/Extension | Rescued a captive Derelict 3326 | -6/Extension | Lost 6 parts (1n5w) 3329 | -6/Extension | Rescued a captive Derelict 3329 | -6/Extension | Rescued a captive Derelict 3330 | -6/Extension | Rescued a captive Derelict 3331 | -6/Extension | Rescued a captive Derelict 3332 | -6/Extension | Rescued a captive Derelict 3332 | -6/Extension | Rescued a captive Derelict 3333 | -6/Extension | Rescued a captive Derelict 3385 | -6/Extension | Spotted B-75 Beast 3412 | -6/Extension | Disrupted transfer network 4149 | -6/Extension | Allies destroyed B-75 Beast 4171 | -6/Extension | Discovered exit to Factory (range 15) 4198 | -6/Extension | Lost 4 allies 4268 | -6/Extension | Extracted ID and sensor layout for unrecognized location from A7's data core 4695 | -6/Extension | Discovered exit to Factory (range 10) 4696 | -6/Extension | Discovered new exit (range 6) 4743 | -6/Extension | Lost 4 allies 4797 | -6/Extension | Entered Cetus 4797 | -6/Cetus | Accompanied by 9 allies 4830 | -6/Cetus | Spotted Cetus Guard 4830 | -6/Cetus | Spotted Cetus Guard 4835 | -6/Cetus | Destroyed Cetus Guard 4836 | -6/Cetus | Spotted Cetus Guard 4836 | -6/Cetus | Spotted Cetus Guard 4845 | -6/Cetus | Allies destroyed Cetus Guard 4851 | -6/Cetus | Allies destroyed Cetus Guard 4852 | -6/Cetus | Destroyed Cetus Guard 4943 | -6/Cetus | Discovered new exit (range 16) 4978 | -6/Cetus | Spotted Cetus Guard 4979 | -6/Cetus | Spotted Cetus Guard 4979 | -6/Cetus | Spotted Cetus Guard 4986 | -6/Cetus | Spotted Cetus Guard 4987 | -6/Cetus | Destroyed Cetus Guard 4990 | -6/Cetus | Destroyed Cetus Guard 4993 | -6/Cetus | Destroyed Cetus Guard 4998 | -6/Cetus | Allies destroyed Cetus Guard 5001 | -6/Cetus | Build established: Scavenger-Executioner 5015 | -6/Cetus | Discovered exit to Factory (range 15) 5024 | -6/Cetus | Met Revision 17 5096 | -6/Cetus | Entered Archives 5096 | -6/Archives | Accompanied by 6 allies 5106 | -6/Archives | Core integrity fell below 50% 5174 | -6/Archives | Discovered new exit (range 16) 5215 | -6/Archives | Discovered new exit (range 16) 5491 | -6/Archives | Entered Hub_04(d) 5491 | -6/Hub_04(d) | Accompanied by 2 allies 5680 | -6/Hub_04(d) | Network Hub disabled 5680 | -6/Hub_04(d) | Network Hub disabled 5714 | -6/Hub_04(d) | Spotted Lightning 5721 | -6/Hub_04(d) | Entered Factory 5721 | -5/Factory | Accompanied by 1 ally 5721 | -5/Factory | Evolved 2 slots: Weapon x2 5929 | -5/Factory | Found Hvy. Reactive Plating 5983 | -5/Factory | Identified exit to Upper Caves 6219 | -5/Factory | Entered Upper Caves 6980 | -5/Upper Caves | Discovered new exit (range 11) 7004 | -5/Upper Caves | Entered another Upper Caves area 7074 | -5/Upper Caves | Discovered new exit (range 11) 7207 | -5/Upper Caves | Discovered new exit (range 16) 7481 | -5/Upper Caves | Entered Zhirov 7481 | -5/Zhirov | Discovered new exit (range 3) 7510 | -5/Zhirov | Met Zhirov 7545 | -5/Zhirov | Found Alien Artifact 7545 | -5/Zhirov | Identified Integrated Dissipator 7545 | -5/Zhirov | Installed Integrated Dissipator, increased core heat dissipation (+20) 7630 | -5/Zhirov | Found Alien Artifact 7680 | -5/Zhirov | Zhirov requested help retrieving the SGEMP Prototype 7726 | -5/Zhirov | Entered Proximity Caves 8129 | -4/Proximity Caves | Learned 12 Research zone layouts 8141 | -4/Proximity Caves | Discovered new exit (range 13) 8168 | -4/Proximity Caves | Entered Factory 8168 | -4/Factory | Evolved 2 slots: Propulsion x1, Utility x1 8193 | -4/Factory | Discovered new exit (range 14) 8420 | -4/Factory | Found Prototype Device 8420 | -4/Factory | Identified Adv. EM Shield 8671 | -4/Factory | Identified exit to Upper Caves 8750 | -4/Factory | Repaired Prc. Assault Rifle 8783 | -4/Factory | Repaired Autogun 8896 | -4/Factory | Fabricated Lgt. Assault Rifle (x3) 8926 | -4/Factory | Entered Upper Caves 9058 | -4/Upper Caves | Encountered a Warlord checkpoint 9167 | -4/Upper Caves | Discovered new exit (range 10) 9217 | -4/Upper Caves | Entered another Upper Caves area 9310 | -4/Upper Caves | Learned Research garrison access intel 9402 | -4/Upper Caves | Encountered a Warlord checkpoint 9421 | -4/Upper Caves | Discovered new exit (range 12) 9443 | -4/Upper Caves | Entered Warlord 9457 | -4/Warlord | System corruption cleaned by Quarantine Array 9644 | -4/Warlord | Met Warlord 9669 | -4/Warlord | Warlord's base attacked by MAIN.C 9677 | -4/Warlord | Found Prototype Energy Cannon 9677 | -4/Warlord | Identified Vortex Cannon 9679 | -4/Warlord | Found Prototype Energy Cannon 9679 | -4/Warlord | Identified Vortex Driver 9688 | -4/Warlord | Found Prototype Launcher 9690 | -4/Warlord | Found Vortex Driver 9826 | -4/Warlord | Found Prototype Processor 9826 | -4/Warlord | Identified Exp. Armor Integrity Analyzer 9934 | -4/Warlord | Opened side exit 10019 | -4/Warlord | Warlord forces counterattacked 10047 | -4/Warlord | Discovered new exit (range 9) 10066 | -4/Warlord | Entered Proximity Caves 10066 | -3/Proximity Caves | Accompanied by 5 allies 10250 | -3/Proximity Caves | Spotted B-86 Titan 10377 | -3/Proximity Caves | Discovered new exit (range 13) 10419 | -3/Proximity Caves | Entered Research 10419 | -3/Research | Accompanied by 4 allies 10419 | -3/Research | Evolved 2 slots: Utility x2 10421 | -3/Research | Loaded intel: 3 garrison access locations 10487 | -3/Research | Fabricated Lgt. Assault Rifle (x3) 10619 | -3/Research | Revision forces began assault on 0b10 10640 | -3/Research | Met up with Revision 17++ 10676 | -3/Research | Repaired Adv. Recoil Stabilizer 11119 | -3/Research | Research terminal network offline 11337 | -3/Research | Lost 3 allies 11346 | -3/Research | Fabricated Lgt. Assault Rifle? 11435 | -3/Research | Spotted Striker 11500 | -3/Research | Spotted Striker 11513 | -3/Research | Destroyed Striker 11728 | -3/Research | Discovered new exit (range 5) 11731 | -3/Research | Identified exit to Quarantine 12267 | -3/Research | Spotted B-86 Titan 12299 | -3/Research | Spotted Striker 12300 | -3/Research | Allies destroyed Striker 12300 | -3/Research | Spotted Executioner 12303 | -3/Research | Destroyed Executioner 12315 | -3/Research | Found Prototype Processor 12315 | -3/Research | Identified Exp. Targeting Computer 12320 | -3/Research | Found Prototype Processor 12320 | -3/Research | Identified Exp. Core Analyzer 12473 | -3/Research | Discovered new exit (range 4) 12533 | -3/Research | Spotted Executioner 12534 | -3/Research | Spotted Striker 12562 | -3/Research | Allies destroyed Executioner 12566 | -3/Research | Found Exp. Targeting Computer 12624 | -3/Research | Found Exp. Core Analyzer 12628 | -3/Research | Found Exp. Targeting Computer 12720 | -3/Research | Entered Quarantine 12755 | -3/Quarantine | Found Alien Artifact 12812 | -3/Quarantine | Identified Vortex Catalyst Activator 13001 | -3/Quarantine | Repaired Helical Railgun 13091 | -3/Quarantine | Cryocooling Duct disabled 13106 | -3/Quarantine | Ambient heat levels rising (+20) 13106 | -3/Quarantine | Non-combat units ordered to evacuate 13470 | -3/Quarantine | First assault squad dispatched 13533 | -3/Quarantine | Discovered new exit (range 5) 13542 | -3/Quarantine | Found Alien Artifact 13564 | -3/Quarantine | Found Alien Impact Weapon 13662 | -3/Quarantine | Entered Research 13662 | -2/Research | Warlord forces began assault on 0b10 13662 | -2/Research | Evolved 2 slots: Utility x2 13772 | -2/Research | Research machine network offline 13830 | -2/Research | Spotted B-90 Cyclops 13934 | -2/Research | Destroyed B-90 Cyclops 13946 | -2/Research | Spotted Striker 13962 | -2/Research | Met up with Warlord 13993 | -2/Research | Found Exp. Targeting Computer 13997 | -2/Research | Found Exp. Core Analyzer 14007 | -2/Research | Met DD-05H 14120 | -2/Research | Discovered new exit (range 10) 14131 | -2/Research | Identified exit to Access 14234 | -2/Research | Spotted Executioner 14234 | -2/Research | Spotted Executioner 14235 | -2/Research | Destroyed Executioner 14246 | -2/Research | Destroyed Executioner 14342 | -2/Research | Borebot progress halted 14626 | -2/Research | Discovered exit to Access (range 60) 14776 | -2/Research | Discovered new exit (range 15) 15167 | -2/Research | Given Cave Seal Controls access code 15167 | -2/Research | Entered Testing 15430 | -2/Testing | Discovered exit to Access (range 5) 15507 | -2/Testing | Garrison activated, responded to threat 15726 | -2/Testing | Spotted Fortress 15753 | -2/Testing | Allies destroyed Fortress 15887 | -2/Testing | Discovered new exit (range 6) 15887 | -2/Testing | Discovered new exit (range 6) 15917 | -2/Testing | First assault squad dispatched 15918 | -2/Testing | Identified Subatomic Replicator 15918 | -2/Testing | Used Subatomic Replicator to replicate Vortex Catalyst Activator 15930 | -2/Testing | Entered Protoforge 15994 | -2/Protoforge | Superfortress began startup sequence 16127 | -2/Protoforge | Discovered exit to Access (range 5) 16291 | -2/Protoforge | Spotted Hotshot 16291 | -2/Protoforge | Spotted Hotshot 16292 | -2/Protoforge | Allies destroyed Hotshot 16292 | -2/Protoforge | Destroyed Hotshot 16292 | -2/Protoforge | Spotted Hotshot 16296 | -2/Protoforge | Destroyed Hotshot 16430 | -2/Protoforge | First assault squad dispatched 16520 | -2/Protoforge | Destroyed 7 combat bots 16611 | -2/Protoforge | Spotted Striker 16613 | -2/Protoforge | Destroyed Striker 16624 | -2/Protoforge | Destroyed Hotshot 16628 | -2/Protoforge | Spotted Decapitator 16635 | -2/Protoforge | Allies destroyed Decapitator 16639 | -2/Protoforge | Spotted Striker 16656 | -2/Protoforge | Destroyed Striker 16661 | -2/Protoforge | Spotted Striker 16664 | -2/Protoforge | Destroyed Striker 16679 | -2/Protoforge | Spotted Decapitator 16683 | -2/Protoforge | Destroyed Decapitator 16689 | -2/Protoforge | Core integrity fell below 50% 16690 | -2/Protoforge | Spotted Executioner 16691 | -2/Protoforge | Destroyed Executioner 16694 | -2/Protoforge | Spotted Hotshot 16708 | -2/Protoforge | High security lockdown imminent 16708 | -2/Protoforge | Destroyed Superfortress 16708 | -2/Protoforge | Destroyed Hotshot 16733 | -2/Protoforge | Destroyed 14 combat bots 16734 | -2/Protoforge | Lost 3 parts (1p2w) 16788 | -2/Protoforge | High security lockdown engaged 16855 | -2/Protoforge | Core integrity fell below 20% 16861 | -2/Protoforge | Lost 4 parts (1u3w) 16895 | -2/Protoforge | Entered Access 16895 | -1/Access | Evolved 2 slots: Propulsion x1, Utility x1 16937 | -1/Access | High security lockdown imminent 16940 | -1/Access | Garrison activated, responded to threat 17017 | -1/Access | High security lockdown engaged 17084 | -1/Access | Spotted Striker 17101 | -1/Access | Allies destroyed Striker 17119 | -1/Access | Destroyed 9 combat bots 17166 | -1/Access | Garrison activated, responded to threat 17265 | -1/Access | Lost 5 parts (1n1u3w) 17269 | -1/Access | Destroyed 19 combat bots 17282 | -1/Access | Spotted Investigator 17282 | -1/Access | Scanned by Researcher 17286 | -1/Access | Garrison activated, responded to threat 17298 | -1/Access | Destroyed Investigator 17318 | -1/Access | Spotted Striker 17327 | -1/Access | Allies destroyed Striker 17411 | -1/Access | Core integrity fell below 50% 17417 | -1/Access | Identified Core Reset Matrix 17417 | -1/Access | Identified Transdimensional Reconstructor 17417 | -1/Access | Used Core Reset Matrix 17426 | -1/Access | Destroyed 27 combat bots 17438 | -1/Access | Emitted hypermatrix ping 17443 | -1/Access | Assembled emerged from beneath the floor 17446 | -1/Access | Core integrity fell below 20% 17471 | -1/Access | Lost 5 parts (1n4w) 17515 | -1/Access | Self-destructed Last Messages --------------- 17503_ L-61 Swordsman destroyed. 17504_ Slug penetrates G-73 Enforcer. 17505_ G-73 Enforcer suffers critical hit (Burn). 17505_ G-73 Enforcer destroyed. 17505_ Switching to secondary target: G-73 Enforcer. 17505_ G-73 Enforcer suffers critical hit (Burn). 17505_ G-73 Enforcer destroyed. 17506_ Hvy. Laser destroyed. 17506_ Slug penetrates I-47 Archangel. 17507_ G-73 Enforcer suffers critical hit (Burn). 17508_ Hvy. Laser destroyed. 17509_ Critical hit (Burn: +37). 17509_ Slug penetrates I-47 Archangel. 17514_ Imp. Fusion Compressor destroyed. 17515_ G-73 Enforcer unfolds itself. 17515_ B-74 Champion unfolds itself. Map ----- +----------------------------------------------------+ | ?????????????????????????????????????????? | | ?????????????????????????????????????????? | | ?????????????????????????????????????????? | | ???????? ????????????????????????????????? | | ?????? ???????????????????????????????? | | ?????? ??????????????????????????????? | | ????? ?????????????????????????????? | | ????? ??????#############??????????? | | ???? ?????# # # # #??????????? | | ???? ?##### # ##?????????? | | ???? ## ## ! ####??????? | | ??? " #??????? | | ???# " ## #????? | | ?? % [ # #?????? | | ?? % #??????? | | ?? % *%/ % = #??????? | | ?? = % % = "" ##??????? | | ?? %[ ==!" ##??????? | | ??? [ % %%/ #??????? | | ??? %% % gg *!=* * #??????? | | ???? %%*=!! = #??????? | | ???? #=! =a% * % ##??????? | | ???? #%=%!"########???????? | | ????? ;;*!####????????%!??? | | ????? !! #! # = = ;########=+##?? | | ?????? !! # !!!!@@= *=!%#?? | | ?????? !!! # ;=! !!* !%#?? | | ???????? # # =/% %%#?? | | ?????????? # # !=/= #?? | | ????????????? ?# ] # ! [ #?? | | ????????????????# # ==% #?? | | ????????????????# ?+ % =% #?? | | ????????????????####?##; ;;### #?? | | ????????????????????? =[=%* #?? #?? | | ????????????????????### %=%!* #???#?? | | ?????????????????????? ===%!% #?????? | | ?????????????????????##;;%%%%%[ ;#????? | | ?????????????????????? g![g= ???? | | ?????????????????????##; g g "" ??? | | ??????????????????????# % i "" ??? | | ??????????????????????###% % !"" ??? | | ????????????????????????#% "" ???? | | ????????????????????????# # +"?????? | | ????????????????????????# ? " ???????? | | ????????????????????????? ? " ??????????? | | ????????????????????????? ? "????????????? | | ?????????????????????????????????????????? | | ?????????????????????????????????????????? | | ?????????????????????????????????????????? | | ?????????????????????????????????????????? | +----------------------------------------------------+ Best States ------------- Heat Dissipation 159 Coolant Potential 120 Energy Generation 35 Energy Capacity 350 Matter Stores 1705 Matter Capacity 1800 Sight Range 23 Robot Scan Range 16 Terrain Scan Density 10 Jamming Range 14 Power Amplification 20 Additional Mass Support 6 Armor Coverage 1200 Resistance: KI 40 Propulsion Shielding 90 Weapon Cycling 20 Evasion (%) 63 Targeting Accuracy 36 Target Analysis 12 Core Analysis 12 Armor Integrity Analysis 50 Recoil Reduction 6 Matter Filtering 30 Salvage Targeting 4 Offensive Hacking 38 Defensive Hacking 12 Item Schematics ----------------- None Robot Schematics ------------------ None Fabricated ------------ Lgt. Assault Rifle | x3 | -6/Factory Lgt. Assault Rifle | x3 | -4/Factory Lgt. Assault Rifle | x3 | -3/Research Lgt. Assault Rifle | x3 | -3/Research Repaired ---------- Prc. Assault Rifle | 10% | -4/Factory Autogun | 4% | -4/Factory Adv. Recoil Stabilizer | 17% | -3/Research Helical Railgun | 37% | -3/Quarantine Studied --------- None Alien Tech Used ----------------- Integrated Dissipator Subatomic Replicator Core Reset Matrix Achievements -------------- None Challenges ------------ None Player 2 | -11 -10 -10 -9 -9 -7 -6 -6 -6 -6 -6 -6 -5 -5 -5 -5 -4 -4 -4 -4 -4 -3 -3 -3 -2 -2 -2 -1 ---------- Run | Yrd Mat Min Mat Min Zio Pro Fac Ext Cet Arc Hub Fac Upp Upp Zhi Pro Fac Upp Upp War Pro Res Qua Res Tes Frg Acc Slots Evolved 18 | . . 2 . . . 6 . . . . 2 . . . . 2 . . . . 2 . 2 . . 2 . Power 1 | . . . . . . . . . . . . . . . . . . . . . . . 1 . . . . Propulsion 4 | . . 1 . . . . . . . . 2 . . . . . . . . . 1 . . . . . . Utility 9 | . . . . . . 4 . . . . . . . . . 2 . . . . 1 . 1 . . 1 . Weapon 4 | . . 1 . . . 2 . . . . . . . . . . . . . . . . . . . 1 . Parts Attached 245 | . 9 . 16 2 5 5 24 8 7 3 . 3 . 1 . 2 22 1 . 4 2 13 11 33 19 19 36 Parts Lost 67 | . . . 1 1 . 1 . 2 3 1 . . . . . 1 . 1 . . . . 8 1 1 18 28 Damage Taken 18593 | . 288 . 192 73 . 557 1166 176 390 238 45 101 32 210 . 99 683 239 . 58 12 335 1888 1156 607 5526 4522 Core 2779 | . 22 . 20 16 . 49 55 21 75 47 . 28 . 56 . . 23 17 . 9 . 49 229 91 88 822 1062 Player 2/Cogmind (%) 65 | . 41 . 25 17 . 36 23 20 100 68 . 70 . 100 . . 16 100 . 100 . 33 95 88 77 80 74 Absorbed by Shields 894 | . . . . . . . . . . . . . . . . . 364 153 . 56 11 94 . . . 216 . Damage Inflicted 27210 | . 515 24 371 167 . 783 1997 923 716 635 83 296 261 162 . 764 1361 121 . . 687 2385 1234 1016 1930 6399 4380 Player 2/Cogmind (%) 38 | . 68 27 44 38 . 48 66 42 34 40 83 57 36 23 . 49 39 37 . . 78 50 29 47 39 40 24 Combat Hostiles Destroyed 129 | . 7 . 5 1 . 1 8 3 2 1 . 4 3 3 . 3 14 . . . 5 14 7 4 5 22 17 Player 2/Cogmind (%) 35 | . 63 . 35 50 . 10 50 21 28 25 . 66 42 60 . 42 58 . . . 62 63 30 28 29 35 20 Game ------ Seed PlasmaPersonalPendant Manual? 0 Play Time 03:21:26 Cumulative 1703.3 hours Start 2026.07.17 @ 07:14:22 End 2026.07.17 @ 11:00:00 Sessions 4 Manual Loads 0 Difficulty Rogue Special Mode AFD2020/Player2 Game No. 2817 Rogue 2810 Adventurer 0 Explorer 7 Win Type - Total 149 Types 40/17/58/3/3/5/21/1/1/0 Lore% 93 Gallery% 87 Achievement% 60 Wizard Run 0 Options --------- Layout 1 ASCII 0 Keyboard 1 Movement Numpad Keybinds 1 Fullscreen 2 Font 24/Smallcaps Map View 50x35 Zoom Use 0% Tactical HUD 1 Map Filters NONE Filters NONE Steam 1 RUN: aace5da9-3747-40e1-8419-9692006ee0df